[Event "73rd Greek Championship 2024"]
[Site "Thessaloniki"]
[Date "2024.12.02"]
[Round "1.1"]
[White "Stamatiou, Rodolfos"]
[Black "Patrelakis, Evaggelos"]
[Result "1/2-1/2"]
[Annotator "TA"]
[ECO "E04"]
[WhiteElo "2308"]
[BlackElo "2437"]
[PlyCount "87"]
[EventDate "2024.12.02"]
[EventType "tourn"]
[EventCountry "GRE"]
[SourceTitle "playchess.com"]
[Source "ChessBase"]
[SourceQuality "1"]
[TimeControl "40/5400+30:1800+30"]

{[%evp 13,87,25,34,34,17,-14,-6,-22,-9,-17,-17,-33,0,-123,-116,-124,-106,-116,-99,-104,-95,-183,-183,-203,-189,-250,-228,-287,-277,-306,-293,-292,-296,-366,-354,-340,-222,-520,-501,-502,-468,-662,-654,-646,-710,-647,-715,-718,-708,-656,-677,-730,-725,-711,-750,-1048,-927,-877,-609,-1353,0,0,0,0,0,-5842,0,0,0,0,0,0,0,0,0,0]} 1. d4 {[%emt 0:00:13]} Nf6 {[%emt 0:01:21]} 2. Nf3 {[%emt 0:00:32]} d5 {[%emt 0:01:40]} 3. c4 {[%emt 0:00:57]} e6 {[%emt 0:01:27]} 4. g3 {[%emt 0:00:07]} dxc4 {[%emt 0:02:42]} 5. Bg2 {[%emt 0:01:26]} a6 {[%emt 0:00:15]} 6. O-O {[%emt 0:07:34]} Nc6 {[%emt 0:01:09]} 7. e3 {[%emt 0:02:26]} Bd7 {[%emt 0:07:08]} 8. Nbd2 {[%emt 0:05:21]} b5 {[%emt 0:02:12]} 9. Ne5 {[%emt 0:05:12] [#]} Nxe5 {[%emt 0:08:31]} 10. Bxa8 {[%emt 0:01:38]} Qxa8 {[%emt 0:00:38]} 11. dxe5 {[%emt 0:00:07] White is weak on the light squares} Nd5 {[%emt 0:02:00]} 12. a4 {[%emt 0:10:12]} Qb7 {[%emt 0:02:24]} 13. b3 {[%emt 0:07:10]} (13. axb5 $11 axb5 14. Qh5) 13... Nc3 $17 {[%emt 0:17:00]} 14. Qe1 {[%emt 0:01:20]} cxb3 {[%emt 0:01:25]} (14... bxa4 15. bxc4 Bb4 16. f3 $11) 15. Nxb3 {[%emt 0:06:23]} Nxa4 {[%emt 0:02:13]} 16. Qa5 {[%emt 0:20:46]} Be7 {[%emt 0:18:56]} 17. e4 {[%emt 0:04:26]} O-O $19 {[%emt 0:02:51][%cal Oc7c5]} 18. Rd1 {[%emt 0:03:48]} c5 $36 {[%emt 0:00:36][%cal Oc5c4][%mdl 2048] Keeping White busy.} 19. Be3 {[%emt 0:03:22]} (19. Rxa4 $142 bxa4 20. Nxc5) 19... c4 {[%emt 0:03:42]} 20. Nc1 {[%emt 0:03:20]} Rc8 {[%emt 0:06:28]} 21. Ne2 {[%emt 0:03:30]} Be8 {[%emt 0:01:19]} 22. f3 {[%emt 0:00:47]} h6 {[%emt 0:01:39]} 23. Ra2 {[%emt 0:05:17]} c3 {[%emt 0:04:27]} 24. Kg2 {[%emt 0:01:43]} Qc6 {[%emt 0:00:43]} 25. Nd4 $2 {[%emt 0:00:32]} (25. Bf2) 25... Qc4 {[%emt 0:00:33]} 26. Raa1 {[%emt 0:02:12]} Nb2 {[%emt 0:03:10]} 27. Rf1 {[%emt 0:01:02]} (27. Rdc1 $142) 27... Bc5 {[%emt 0:03:40]} 28. Qxa6 {[%emt 0:00:45]} Rd8 {[%emt 0:00:43]} 29. Qa5 {[%emt 0:00:28]} Rxd4 {[%emt 0:00:56]} 30. Bxd4 {[%emt 0:01:28]} Qxd4 {[%emt 0:00:02]} 31. Qa8 {[%emt 0:00:25]} Qd7 {[%emt 0:00:11]} 32. Qb8 {[%emt 0:01:20]} Kf8 {[%emt 0:01:36] [#] ...c2 is the strong threat.} 33. Ra8 {[%emt 0:00:28]} b4 {[%emt 0:00:31]} 34. f4 {[%emt 0:00:20]} Nc4 {[%emt 0:01:47]} 35. Kh3 {[%emt 0:00:22]} c2 {[%emt 0:01:00]} 36. Qc8 {[%emt 0:00:57]} Qe7 {[%emt 0:00:40]} (36... Qxc8 $19 37. Rxc8 b3 38. Rxc5 b2 39. Rxc4 b1=Q (39... b1=B $2 {perishes.} 40. Rc5 $18)) 37. Qc6 $11 {[%emt 0:00:16][%cal Oa8e8] Really sharp!} Nd2 {[%emt 0:00:37]} 38. Rfa1 {[%emt 0:00:43][%cal Oa8e8] Hoping for Rxe8+!} Nb3 {[%emt 0:00:45]} 39. Rxe8+ {[%emt 0:00:11]} Qxe8 {[%emt 0:00:01]} 40. Ra8 {[%emt 0:00:00] The position is equal.} Qxa8 {[%emt 0:00:00]} ({Weaker is} 40... c1=Q 41. Rxe8#) 41. Qxa8+ {[%emt 0:00:17]} Ke7 {[%emt 0:04:17]} 42. Qb7+ {[%emt 0:02:12]} Kd8 {[%emt 0:00:34] Threatens to win with ...g6.} 43. Qb8+ {[%emt 0:00:18]} Kd7 {[%emt 0:00:02] Strongly threatening ...g6.} 44. Qb7+ {[%emt 0:00:51] Weighted Error Value: White=0.58/Black=0.38.  Missed win:     	---       	Black=1      Mistake:       	White=5     	---        Inaccurate:     	White=1     	Black=2      OK:         	White=12    	Black=8      Best:        	White=3     	Black=3} 1/2-1/2

[Event "73rd Greek Championship 2024"]
[Site "Thessaloniki"]
[Date "2024.12.02"]
[Round "1.2"]
[White "Mitsis, Georgios"]
[Black "Kalogridis, Antonios"]
[Result "1/2-1/2"]
[Annotator "TA"]
[ECO "D90"]
[WhiteElo "2383"]
[BlackElo "2333"]
[PlyCount "60"]
[EventDate "2024.12.02"]
[EventType "tourn"]
[EventCountry "GRE"]
[SourceTitle "playchess.com"]
[Source "ChessBase"]
[SourceQuality "1"]
[TimeControl "40/5400+30:1800+30"]

{[%evp 9,60,-16,-4,-13,0,-25,-26,0,0,13,39,10,43,20,16,23,33,30,45,0,43,4,14,0,0,0,0,0,0,0,0,0,0,0,0,-75,-23,-25,0,0,0,0,0,0,0,0,0,0,0,0,0,0,0]} 1. d4 {[%emt 0:00:08]} Nf6 {[%emt 0:00:03]} 2. Nf3 {[%emt 0:00:16]} g6 {[%emt 0:00:04]} 3. c4 {[%emt 0:00:05]} Bg7 {[%emt 0:00:04]} 4. Nc3 {[%emt 0:00:08]} d5 {[%emt 0:00:04]} 5. h4 {[%emt 0:00:37]} dxc4 {[%emt 0:00:07]} 6. e4 {[%emt 0:00:21][%cal Oe4e5] [#]} c5 $1 {[%emt 0:00:03]} 7. d5 {[%emt 0:00:28] [#]} (7. Bxc4 cxd4) 7... b5 $1 {[%emt 0:00:06] Inhibits Qa4.} 8. h5 {[%emt 0:01:06] And now h6 would win.} Nxh5 {[%emt 0:00:19]} 9. Nxb5 {[%emt 0:00:45]} (9. e5 O-O 10. Nxb5 Qa5+ 11. Nc3 Bg4 12. Bxc4 Bxe5 $17) 9... Qa5+ {[%emt 0:02:04] [#]} 10. Nc3 $1 {[%emt 0:00:11][%cal Oc1d2][%mdl 1024] White has compensation.} Nd7 {[%emt 0:00:36]} (10... O-O 11. Bd2) 11. Bd2 {[%emt 0:01:07]} (11. Bxc4 $2 Bxc3+ 12. Kf1 Ba6 $19) 11... Rb8 {[%emt 0:00:12]} 12. Rb1 {[%emt 0:00:28]} (12. Bxc4 Rxb2 13. Rc1 O-O $11) 12... Ba6 {[%emt 0:05:54]} 13. Be2 {[%emt 0:07:09]} Qc7 {[%emt 0:19:48]} 14. Qa4 {[%emt 0:03:21]} Qc8 {[%emt 0:05:02]} 15. O-O {[%emt 0:09:15]} O-O {[%emt 0:10:26]} 16. Bxc4 {[%emt 0:05:11]} Bxc4 {[%emt 0:00:12]} 17. Qxc4 {[%emt 0:00:05]} Ne5 {[%emt 0:02:20]} 18. Qe2 {[%emt 0:04:31]} f5 {[%emt 0:06:17]} 19. Nxe5 {[%emt 0:33:00]} Bxe5 {[%emt 0:00:07]} 20. exf5 {[%emt 0:00:12]} Rxf5 {[%emt 0:00:17]} 21. Ne4 {[%emt 0:09:47]} Bd4 {[%emt 0:08:11][%cal Of5e5]} 22. g4 {[%emt 0:11:55]} (22. b4 $11) 22... Re5 {[%emt 0:06:25]} (22... Rxd5 23. Qf3 $16 (23. gxh5 Qh3 $11)) (22... Nf4 $17 23. Qf3 Rf8) 23. Kg2 $11 {[%emt 0:05:10]} (23. gxh5 Qh3 24. Rfe1 Rxh5 $19) 23... Nf6 {[%emt 0:04:51]} 24. Nxf6+ {[%emt 0:03:10]} exf6 {[%emt 0:00:05]} 25. Qf3 {[%emt 0:00:08]} g5 {[%emt 0:00:57] Repels Bf4} ({But not} 25... Bxb2 $6 26. d6 $16 (26. Qxf6 $2 {leads to mate.} Qxg4+ 27. Kh2 Rh5+) (26. Bf4 c4 $16)) (25... Rxb2 $2 26. Rxb2 Bxb2 27. Rb1 $18) 26. Rfe1 {[%emt 0:02:41]} Qd7 {[%emt 0:03:28]} 27. Rxe5 {[%emt 0:00:07]} Bxe5 {[%emt 0:00:25]} 28. b3 {[%emt 0:01:14]} c4 {[%emt 0:03:53]} 29. Re1 {[%emt 0:01:30]} cxb3 {[%emt 0:06:03]} 30. axb3 {[%emt 0:00:05]} Rb5 {[%emt 0:02:40]} 1/2-1/2

[Event "73rd Greek Championship 2024"]
[Site "Thessaloniki"]
[Date "2024.12.02"]
[Round "1.3"]
[White "Kourkoulos-Arditis, Stamatis"]
[Black "Hadzimanolis, Antonios"]
[Result "1-0"]
[Annotator "TA"]
[ECO "B91"]
[WhiteElo "2575"]
[BlackElo "2159"]
[PlyCount "71"]
[EventDate "2024.12.02"]
[EventType "tourn"]
[EventCountry "GRE"]
[SourceTitle "playchess.com"]
[Source "ChessBase"]
[SourceQuality "1"]
[TimeControl "40/5400+30:1800+30"]

{[%evp 19,71,38,43,28,47,41,43,35,58,51,54,54,55,70,41,7,43,33,37,1,6,0,5,0,0,0,0,0,23,25,75,57,80,36,54,43,140,116,124,5,15,16,12,18,20,-57,164,162,596,569,731,707,1283,1266]} 1. e4 {[%emt 0:00:03]} c5 {[%emt 0:00:06]} 2. Nf3 {[%emt 0:00:11]} d6 {[%emt 0:00:05]} 3. d4 {[%emt 0:00:15]} cxd4 {[%emt 0:00:06]} 4. Nxd4 {[%emt 0:00:04]} Nf6 {[%emt 0:00:08]} 5. Nc3 {[%emt 0:00:06]} a6 {[%emt 0:00:06]} 6. g3 {[%emt 0:01:42]} e5 {[%emt 0:05:44]} 7. Nb3 {[%emt 0:00:44]} Be7 {[%emt 0:00:10]} 8. Bg2 {[%emt 0:00:14]} Nbd7 {[%emt 0:04:11]} 9. a4 {[%emt 0:00:43]} b6 {[%emt 0:02:49]} 10. O-O {[%emt 0:00:17]} Bb7 {[%emt 0:00:09]} 11. Qe2 {[%emt 0:04:01]} Rc8 {[%emt 0:00:27]} 12. Rd1 {[%emt 0:01:34]} Qc7 {[%emt 0:01:08]} 13. Nd2 {[%emt 0:02:35][%cal Bb3d2,Bd2f1,Bf1e3][%mdl 32] White is slightly better.} O-O {[%emt 0:07:57]} 14. Nf1 {[%emt 0:00:49]} Nc5 {[%emt 0:15:25]} 15. Bg5 $1 {[%emt 0:04:17]} Ne6 {[%emt 0:01:29]} 16. Bxf6 {[%emt 0:00:10]} Bxf6 {[%emt 0:00:12]} 17. Ne3 {[%emt 0:03:15]} Nd4 {[%emt 0:00:49]} 18. Qg4 {[%emt 0:03:03]} Qd8 {[%emt 0:17:30]} 19. h4 {[%emt 0:14:18]} g6 {[%emt 0:05:16]} 20. Rd3 {[%emt 0:01:24]} Bg7 {[%emt 0:03:37]} 21. Qd1 {[%emt 0:10:36]} f5 {[%emt 0:02:07]} 22. exf5 {[%emt 0:05:26]} Bxg2 {[%emt 0:00:08]} 23. Nxg2 {[%emt 0:00:24]} gxf5 {[%emt 0:05:59]} 24. Ne2 {[%emt 0:05:01]} Nxc2 {[%emt 0:08:36]} (24... Nxe2+ $11 {keeps the balance.} 25. Qxe2 f4) 25. Rxd6 $16 {[%emt 0:01:50]} Qe7 {[%emt 0:05:37]} 26. Qd5+ {[%emt 0:03:50]} Kh8 {[%emt 0:01:03]} 27. Rd1 {[%emt 0:01:52][%cal Od6d7]} Rc5 {[%emt 0:07:16] [#]} ({Black should play} 27... a5 $14) 28. Qb3 $1 {[%emt 0:06:15]} b5 {[%emt 0:03:14] [#]} (28... Nd4 29. Nxd4 Qxd6 30. Ne6 $18) 29. R1d5 {[%emt 0:09:16]} ({White should try} 29. Rd7 $1 $16 {[%cal Rd7e7]} Qe8 30. Ra7) 29... Nd4 {[%emt 0:00:55]} 30. Nxd4 {[%emt 0:00:18]} Rc1+ $1 {[%emt 0:00:02]} 31. Kh2 {[%emt 0:00:18]} exd4 {[%emt 0:00:01]} 32. Qb4 {[%emt 0:09:06]} (32. axb5 $2 Qe2 $19) (32. Qf3 $11) 32... Rc4 $2 {[%emt 0:02:24] This move loses the game for Black.} (32... Rc2 $15 {keeps the upper hand.} 33. Qe1 (33. axb5 $2 {too greedy.} Rxf2 $19) 33... Qxe1 34. Nxe1 Rxf2+ (34... Rxb2 35. Kg2 $14) 35. Kh3 f4 (35... bxa4 36. Nd3 $11) (35... Rxb2 36. h5 $11) 36. axb5 (36. Rxa6 $2 f3 $19) 36... axb5 37. gxf4 (37. Nd3 $2 Rf3 $19) 37... R2xf4) 33. Qd2 $36 {[%emt 0:00:29][%mdl 2048] White is on the roll.} Rxa4 $2 {[%emt 0:01:10]} (33... Qe4) 34. Rd7 {[%emt 0:00:13] White is clearly winning.} Qe8 {[%emt 0:00:37]} 35. b3 {[%emt 0:06:05]} Ra1 {[%emt 0:00:19] [#]} 36. Rxg7 $1 {[%emt 0:00:18][%mdl 512] Weighted Error Value: White=0.18 (very precise) /Black=0.48.  Loses game:     	---       	Black=1      Mistake:       	White=2     	Black=3      Inaccurate:     	White=3     	Black=2      OK:         	White=6     	Black=9      Best:        	White=3     	Black=2      Strong:       	White=2     	Black=1} 1-0

[Event "73rd Greek Championship 2024"]
[Site "Thessaloniki"]
[Date "2024.12.02"]
[Round "1.4"]
[White "Alexakis, Dimitris"]
[Black "Kolytas, Spiridon"]
[Result "1-0"]
[Annotator "TA"]
[ECO "B13"]
[WhiteElo "2520"]
[BlackElo "1946"]
[PlyCount "67"]
[EventDate "2024.12.02"]
[EventType "tourn"]
[EventCountry "GRE"]
[SourceTitle "playchess.com"]
[Source "ChessBase"]
[SourceQuality "1"]
[TimeControl "40/5400+30:1800+30"]

{[%evp 14,67,17,0,5,8,11,12,20,13,14,7,7,4,25,16,27,11,22,23,19,0,0,0,0,0,0,0,0,0,0,0,0,0,0,-5,0,0,0,0,0,0,34,14,34,0,29,0,20,20,157,161,208,194,863,856]} 1. e4 {[%emt 0:07:02]} c6 {[%emt 0:00:13]} 2. d4 {[%emt 0:00:10]} d5 {[%emt 0:00:06]} 3. exd5 {[%emt 0:00:15]} cxd5 {[%emt 0:00:06]} 4. Bd3 {[%emt 0:00:05]} Nc6 {[%emt 0:00:21]} 5. c3 {[%emt 0:00:06]} Nf6 {[%emt 0:00:22]} 6. h3 {[%emt 0:00:09]} g6 {[%emt 0:00:27]} 7. Nf3 {[%emt 0:00:06]} Bf5 {[%emt 0:00:24]} 8. O-O {[%emt 0:00:11]} Bxd3 {[%emt 0:00:33]} 9. Qxd3 {[%emt 0:00:06]} Bg7 {[%emt 0:00:04]} 10. Bf4 {[%emt 0:00:09]} O-O {[%emt 0:00:18] The position is equal.} 11. Nbd2 {[%emt 0:00:10]} e6 {[%emt 0:00:42]} 12. Rfe1 {[%emt 0:00:57]} Re8 {[%emt 0:00:41]} 13. Re2 {[%emt 0:02:20]} a5 {[%emt 0:00:50]} 14. a4 {[%emt 0:11:38]} Qb6 {[%emt 0:08:29]} 15. Qb5 {[%emt 0:13:40]} Nd7 {[%emt 0:08:51]} 16. Qxb6 {[%emt 0:28:32]} Nxb6 {[%emt 0:00:20]} 17. Kf1 {[%emt 0:00:07]} f6 {[%emt 0:14:16]} 18. Bc7 {[%emt 0:02:04]} Nd7 {[%emt 0:04:19]} 19. Ra3 {[%emt 0:00:55]} Rac8 {[%emt 0:07:41]} 20. Bh2 {[%emt 0:01:04]} Kf7 {[%emt 0:04:04]} 21. Rb3 {[%emt 0:03:18]} b6 {[%emt 0:00:13]} 22. Nb1 {[%emt 0:02:47]} Bf8 {[%emt 0:07:35]} 23. Na3 {[%emt 0:01:59]} Na7 {[%emt 0:07:59]} 24. Ne1 {[%emt 0:03:02] [#]} Rc4 $1 {[%emt 0:13:09]} 25. Nxc4 {[%emt 0:04:19]} dxc4 {[%emt 0:00:04]} 26. Rb5 {[%emt 0:00:15]} Nxb5 {[%emt 0:00:06]} 27. axb5 {[%emt 0:00:03]} Rc8 {[%emt 0:07:23]} 28. Nc2 {[%emt 0:03:38]} f5 {[%emt 0:00:35]} 29. Re1 {[%emt 0:01:51]} Nf6 {[%emt 0:01:05]} 30. Ra1 {[%emt 0:00:49]} Bh6 {[%emt 0:03:16]} 31. Ra4 {[%emt 0:04:24] Hoping for Ke2.} Bc1 {[%emt 0:02:18] [#]} (31... f4 $1 $11) 32. Na3 $1 $16 {[%emt 0:00:13]} Bxb2 {[%emt 0:01:06]} (32... Nd5 $142) 33. Nxc4 $18 {[%emt 0:00:12]} ({Stronger than} 33. Rxc4 Rxc4 34. Nxc4 Bxc3 35. Nxb6 Bxd4 $15) 33... Bxc3 $2 {[%emt 0:00:24]} (33... Rxc4 34. Rxc4 Nd5) 34. Nd6+ {[%emt 0:00:09] Weighted Error Value: White=0.06 (flawless) /Black=0.21 (precise) .  Mistake:       	---       	Black=3      Inaccurate:     	White=2     	Black=2      OK:         	White=8     	Black=9      Best:        	White=3     	---        Strong:       	White=1     	---} ({Less strong is} 34. Nxb6 Rd8 $16) 1-0

[Event "73rd Greek Championship 2024"]
[Site "Thessaloniki"]
[Date "2024.12.02"]
[Round "1.5"]
[White "Tsaknakis, Zisis"]
[Black "Alexiadis, Hristos"]
[Result "1-0"]
[Annotator "TA"]
[ECO "C60"]
[WhiteElo "2259"]
[BlackElo "2341"]
[PlyCount "101"]
[EventDate "2024.12.02"]
[EventType "tourn"]
[EventCountry "GRE"]
[SourceTitle "playchess.com"]
[Source "ChessBase"]
[SourceQuality "1"]
[TimeControl "40/5400+30:1800+30"]

{[%evp 9,101,21,34,15,22,30,44,39,41,37,55,16,16,19,26,15,25,13,37,17,14,0,63,60,112,0,0,0,0,-3,0,0,20,41,39,16,87,89,87,0,106,96,123,125,79,71,230,104,89,110,162,168,197,196,279,286,274,283,279,265,300,295,303,294,339,322,322,325,266,245,400,407,560,610,535,587,582,560,660,652,644,643,627,591,661,646,733,704,737,733,29962,4949,4931,4930]} 1. e4 {[%emt 0:00:04]} e5 {[%emt 0:09:29]} 2. Nf3 {[%emt 0:00:11]} Nc6 {[%emt 0:00:04]} 3. Bb5 {[%emt 0:00:22][%cal Bf1b5,Bb5a4,Ba4b3][%mdl 32]} a6 {[%emt 0:00:06]} 4. Ba4 {[%emt 0:02:19]} Nge7 {[%emt 0:00:14]} 5. O-O {[%emt 0:05:08]} Ng6 {[%emt 0:00:38]} 6. d4 {[%emt 0:02:16]} exd4 {[%emt 0:04:45]} 7. Nxd4 {[%emt 0:00:49]} Nxd4 {[%emt 0:16:05]} 8. Qxd4 {[%emt 0:00:17] White is slightly better.} b5 {[%emt 0:00:21]} 9. Bb3 {[%emt 0:00:26]} Bb7 {[%emt 0:02:21] [#] Inhibits Qd5. ...c5 is the strong threat.} 10. Qc3 {[%emt 0:11:27]} Bd6 {[%emt 0:24:24]} 11. Qxg7 {[%emt 0:02:58]} Qe7 {[%emt 0:03:34][%cal Oe8c8]} 12. Nc3 {[%emt 0:06:51]} O-O-O $1 {[%emt 0:01:51]} (12... Be5 $6 13. Qh6 $18) 13. Be3 {[%emt 0:18:18]} (13. Bxf7 $2 Rdf8 (13... Bxe4 14. Nxe4 Qxe4 15. Bb3 $16) 14. Qd4 Qxf7 $19 (14... Rxf7 $2 15. Nd5 $19)) (13. Qxf7 Qe5 14. g3 (14. f4 $2 Qd4+ 15. Kh1 Rdf8 $19) 14... Rdf8 $19 (14... Bxe4 $2 15. Nxe4 Qxe4 16. Bh6 $18)) 13... b4 {[%emt 0:17:06]} 14. Nd5 {[%emt 0:03:37]} Qxe4 {[%emt 0:00:08]} 15. Rad1 {[%emt 0:09:06] Active counter play!} (15. Qxf7 $2 Rdf8 16. Qg7 (16. f3 $2 Qh4 $19) 16... Bxd5 $19) (15. Qd4 {simplifies} Qxd4 16. Bxd4 Rhg8 17. g3) 15... Ne5 {[%emt 0:09:01]} (15... Nh4 $11 16. f3 (16. Qxf7 $2 Qxg2#) 16... Qe8) 16. f3 $14 {[%emt 0:05:58]} Qh4 {[%emt 0:01:39]} (16... Qg6 $14 17. Qxg6 fxg6) 17. Bg5 {[%emt 0:13:47]} (17. Qf6 $16 Qxf6 18. Nxf6) 17... Nxf3+ $11 {[%emt 0:00:11]} 18. Rxf3 {[%emt 0:00:02]} Qxh2+ {[%emt 0:00:06]} 19. Kf2 {[%emt 0:00:16]} Bc5+ {[%emt 0:00:27]} 20. Re3 $1 {[%emt 0:07:48]} Rdg8 {[%emt 0:05:59]} 21. Qh6 {[%emt 0:01:35]} Qe5 {[%emt 0:00:45]} 22. Bf4 {[%emt 0:01:33]} (22. Ne7+ Kb8 23. Nxg8 Rxg8) 22... Qe4 {[%emt 0:01:32] [#]} (22... Qf5 $1 $11) 23. g3 $1 $16 {[%emt 0:03:43][%cal Od1d3]} Rg6 {[%emt 0:00:40]} (23... Re8 24. Rdd3) 24. Qh3 {[%emt 0:00:01]} (24. Qh5 $16) 24... Bxe3+ {[%emt 0:00:28]} (24... Bxd5 $1 $11 {keeps the balance.} 25. Rxd5 Bxe3+ 26. Bxe3 Re8 27. Qxd7+ Kb8) 25. Nxe3 {[%emt 0:01:05]} Qf3+ {[%emt 0:00:25]} 26. Ke1 {[%emt 0:00:01] Really sharp!} Bc6 {[%emt 0:00:14]} 27. Kd2 $36 {[%emt 0:01:54][%cal Od2c1][%mdl 2048] aiming for Kc1! White has strong initiative.} Bb5 $2 {[%emt 0:00:53]} (27... Re8 $16 28. Re1 (28. Qxh7 $2 Rxg3 29. Qxf7 Re4 $19) (28. Bxf7 $2 Rd6+ $19) 28... Rf6) 28. Qg2 {[%emt 0:01:20]} (28. Bxf7 $6 Rd6+ 29. Kc1 (29. Bxd6 Qf2+ 30. Kc1 Qxe3+ 31. Kb1 cxd6 $15) 29... Rxd1+ 30. Nxd1 Be2 $16) (28. Qh2 $18 {[%cal Ob3d5] Threatens to win with Bd5!} Re8 29. Bd5 (29. Bxf7 $2 Rxe3 30. Kc1 Re2 $19)) 28... Qxg2+ {[%emt 0:00:25]} 29. Nxg2 {[%emt 0:00:02]} Re8 {[%emt 0:00:32] Wards off Ne3} (29... h5 $16 30. Bxf7 Rf6) 30. Ne3 $1 $18 {[%emt 0:00:18]} (30. Bxf7 Re2+ 31. Kc1 Rxg2 $17) 30... Rf6 {[%emt 0:00:30]} 31. Rh1 {[%emt 0:00:26]} c6 {[%emt 0:00:27]} (31... h6 $142 32. Nd5 (32. Rxh6 Rxh6 33. Bxh6 Rh8 $16) 32... Re2+ 33. Kd1 Rf5) 32. a4 {[%emt 0:01:19]} bxa3 {[%emt 0:00:03]} 33. c4 {[%emt 0:00:02]} ({Inferior is} 33. Rxh7 axb2 34. Rh1 d5 $11) 33... axb2 {[%emt 0:00:42]} 34. Rb1 {[%emt 0:00:48]} d5 {[%emt 0:00:48]} 35. cxb5 {[%emt 0:00:15]} axb5 {[%emt 0:00:04]} 36. Rxb2 {[%emt 0:00:07]} h5 {[%emt 0:00:10]} 37. Kd3 {[%emt 0:01:11]} h4 {[%emt 0:00:16]} 38. Bg5 {[%emt 0:00:22]} Rf3 {[%emt 0:00:05]} 39. gxh4 {[%emt 0:00:05] Bd1 would now be deadly.} f6 $2 {[%emt 0:00:20]} (39... f5 {keeps fighting.}) 40. Bd1 {[%emt 0:00:00]} fxg5 {[%emt 0:00:00]} 41. Bxf3 {[%emt 0:02:24]} gxh4 {[%emt 0:03:20]} 42. Rh2 {[%emt 0:03:54]} Kc7 {[%emt 0:01:59]} 43. Rxh4 {[%emt 0:02:13]} Kb6 {[%emt 0:00:30]} 44. Nc2 {[%emt 0:05:41]} Rf8 {[%emt 0:02:56]} 45. Bh1 {[%emt 0:03:24]} Rf1 {[%emt 0:03:19]} 46. Bg2 {[%emt 0:05:23]} Rd1+ {[%emt 0:02:06]} 47. Ke2 {[%emt 0:01:03]} Rc1 {[%emt 0:00:38]} 48. Kd2 {[%emt 0:00:08]} Rg1 {[%emt 0:00:13]} 49. Ne1 {[%emt 0:00:30]} Kc5 {[%emt 0:02:51]} 50. Ke2 {[%emt 0:00:14] Kf2 would kill now.} b4 {[%emt 0:00:09]} 51. Kf2 {[%emt 0:00:15] Weighted Error Value: White=0.19 (very precise) /Black=0.33.  Mistake:       	White=3     	Black=8      Inaccurate:     	White=1     	Black=1      OK:         	White=17    	Black=13     Best:        	White=5     	Black=2      Strong:       	White=3     	Black=1} 1-0